bitfinex-derivatives/quotes_BTCF0:USTF0_20250318
["timestamp","ask_amount","ask_price","bid_price","bid_amount"]
[1742341127600,0.5446129,82719.0,82718.0,0.0526137]
[1742341129395,0.1209246,82711.0,82710.0,0.00018141]
[1742341129583,0.1209246,82711.0,82683.0,0.50131833]
[1742341129584,0.1209305,82707.0,82703.0,0.28710762]
[1742341129792,0.4817305,82707.0,82703.0,0.28646762]
[1742341130593,0.5017311,82707.0,82703.0,0.28646762]
[1742341130794,0.1209407,82700.0,82699.0,0.05179653]
[1742341130993,0.4817407,82700.0,82699.0,0.05179653]
[1742341131695,0.5754407,82700.0,82699.0,0.05179653]
[1742341131888,0.1209422,82699.0,82698.0,0.00018141]
[1742341132099,0.120948,82695.0,82694.0,1e-08]
[1742341132402,0.120948,82695.0,82689.0,0.28642423]
[1742341132403,0.1209553,82690.0,82689.0,0.28642423]
[1742341132606,0.1209553,82690.0,82675.0,0.53311833]
[1742341132607,0.1209758,82676.0,82675.0,0.50131833]
[1742341132804,0.8425758,82676.0,82675.0,0.50131833]
[1742341133691,0.1209787,82674.0,82667.0,0.00018141]
[1742341133893,0.1209831,82671.0,82667.0,0.00018141]
[1742341134099,0.2409431,82671.0,82667.0,0.00018141]
[1742341134290,0.2409431,82671.0,82666.0,0.6034765]
[1742341134291,0.120989,82667.0,82666.0,0.6034765]
[1742341134491,0.481789,82667.0,82666.0,0.5199263]
[1742341134688,0.481789,82667.0,82661.0,0.00064]
[1742341134689,0.1209963,82662.0,82661.0,0.00064]
[1742341134905,0.1210022,82658.0,82657.0,0.0323]
[1742341136508,0.1210022,82658.0,82657.0,0.1533036]
[1742341137106,0.1210022,82658.0,82657.0,0.0323]
[1742341137810,0.1210022,82658.0,82657.0,0.2733036]
[1742341138007,0.1210022,82658.0,82657.0,0.3047036]
[1742341139103,0.21636921,82659.0,82658.0,0.1210022]
[1742341139296,0.17400319,82659.0,82658.0,0.1830022]
[1742341140903,0.13163717,82659.0,82658.0,0.1830022]
[1742341141409,0.25263787,82659.0,82658.0,0.3080022]
[1742341142393,0.13163717,82659.0,82658.0,0.3080022]
[1742341143397,0.13163717,82659.0,82658.0,0.3030022]
[1742341143597,0.13163717,82659.0,82658.0,0.3070022]
[1742341144206,0.13163717,82659.0,82658.0,0.3030022]
[1742341144409,0.13163717,82659.0,82658.0,0.3060022]
[1742341144714,4e-05,82660.0,82659.0,0.1210007]
[1742341145203,4e-05,82660.0,82659.0,0.1847007]
[1742341145510,4e-05,82660.0,82659.0,0.3047007]
[1742341146407,0.1210392,82660.0,82659.0,0.3047007]
[1742341146801,0.1210392,82660.0,82659.0,0.3077007]
[1742341147311,0.1210392,82660.0,82659.0,0.0667]
[1742341147496,0.1210392,82660.0,82659.0,0.3047007]
[1742341147696,0.1210392,82660.0,82659.0,0.3077007]
[1742341147911,0.1516392,82660.0,82659.0,0.3077007]
[1742341148098,0.1210392,82660.0,82659.0,0.3077007]
[1742341148509,0.1210392,82660.0,82659.0,0.3067007]
[1742341150995,0.1210392,82660.0,82659.0,0.1867007]
[1742341151194,0.1210392,82660.0,82659.0,0.3067007]
[1742341152099,0.1210392,82660.0,82659.0,0.0657]
[1742341152307,0.1210392,82660.0,82659.0,0.3067007]
[1742341153503,0.1210392,82660.0,82659.0,0.1857]
[1742341153915,0.1520392,82660.0,82659.0,0.1857]
[1742341154414,0.1520392,82660.0,82659.0,0.0346]
[1742341155701,0.5128392,82660.0,82659.0,0.0346]
[1742341156106,0.5128392,82660.0,82659.0,0.002]
[1742341158617,0.1210109,82652.0,82651.0,0.0307]
[1742341158815,0.4818109,82652.0,82651.0,0.0307]
[1742341159622,0.5452109,82652.0,82651.0,0.0307]
[1742341159924,0.5442,82652.0,82632.0,0.0605195]
[1742341160216,0.1210358,82635.0,82634.0,0.0326]
[1742341160420,0.4818358,82635.0,82634.0,0.0326]
[1742341160607,0.4818358,82635.0,82634.0,0.1536373]
[1742341161722,0.4818358,82635.0,82634.0,0.2736773]
[1742341162110,0.1210358,82635.0,82634.0,0.2736773]
[1742341162317,0.0605165,82637.0,82636.0,0.1210344]
[1742341162519,0.421313,82642.0,82639.0,0.1210285]
[1742341162725,0.54234,82642.0,82641.0,0.121027]
[1742341163022,0.18154,82642.0,82641.0,0.241067]
[1742341163409,4e-05,82643.0,82642.0,0.1210256]
[1742341163813,4e-05,82643.0,82642.0,0.1822256]
[1742341164522,0.00018141,82650.0,82649.0,0.1210153]
[1742341164821,0.00018141,82650.0,82649.0,0.2410553]
[1742341165412,0.00018141,82650.0,82649.0,0.3042553]
[1742341165723,0.12119531,82650.0,82649.0,0.3042553]
[1742341166106,0.12119531,82650.0,82647.0,0.0605084]
[1742341166107,0.0605102,82646.0,82644.0,0.1210219]
[1742341166311,0.1815299,82646.0,82645.0,0.2711612]
[1742341166518,0.1795299,82646.0,82645.0,0.2711612]
[1742341167919,0.1815242,82649.0,82648.0,0.1210168]
[1742341169514,0.3624322,82649.0,82648.0,0.1210168]
[1742341170620,0.3624322,82649.0,82648.0,0.1220168]
[1742341170819,0.3624322,82649.0,82648.0,0.001]
[1742341171210,0.3624322,82649.0,82648.0,0.1220168]
[1742341172730,0.3624322,82649.0,82648.0,0.1210168]
[1742341173121,0.42126606,82649.0,82648.0,0.1210168]
[1742341173518,0.42117454,82649.0,82648.0,0.1210168]
[1742341177017,0.24026654,82649.0,82648.0,0.1210168]
[1742341177213,0.1210183,82647.0,82646.0,0.0605091]
[1742341177416,0.4818183,82647.0,82646.0,0.0906091]
[1742341178616,0.4818183,82647.0,82646.0,0.0301]
[1742341179539,0.4818183,82647.0,82646.0,0.1511197]
[1742341179728,0.4818183,82647.0,82646.0,0.0301]
[1742341179923,0.5137183,82647.0,82646.0,0.0301]
[1742341181041,0.57255216,82647.0,82646.0,0.0301]
[1742341182137,0.21175216,82647.0,82646.0,0.0301]
[1742341182637,0.57255216,82647.0,82646.0,0.0301]
[1742341183229,0.1210256,82642.0,82641.0,0.0324]
[1742341184536,0.1519256,82642.0,82641.0,0.0324]
[1742341188839,0.21075946,82642.0,82641.0,0.0324]
[1742341189234,0.21075946,82642.0,82641.0,0.0641]
[1742341191447,0.21075946,82642.0,82641.0,0.0317]
[1742341198656,0.17985946,82642.0,82641.0,0.0317]
[1742341198848,0.24525946,82642.0,82641.0,0.0317]
[1742341206049,0.17985946,82642.0,82641.0,0.0317]
[1742341206448,0.17985946,82642.0,82641.0,0.152727]
[1742341206649,0.05883386,82642.0,82641.0,0.185627]
[1742341207158,0.17985946,82642.0,82641.0,0.185627]
[1742341209751,0.17985946,82642.0,82641.0,0.186627]
[1742341210459,0.24295946,82642.0,82641.0,0.186627]
[1742341211274,0.17985946,82642.0,82641.0,0.186627]
[1742341212164,0.17985946,82642.0,82641.0,0.185627]
[1742341212464,0.17985946,82642.0,82641.0,0.186627]
[1742341213260,0.17985946,82642.0,82641.0,0.20124133]
[1742341215661,0.05883386,82642.0,82641.0,0.20124133]
[1742341217061,0.21205946,82642.0,82641.0,0.20124133]
[1742341218060,0.24385946,82642.0,82641.0,0.186627]
[1742341222966,0.05883386,82642.0,82641.0,0.186627]
[1742341223161,0.05883386,82642.0,82641.0,0.185627]
[1742341223473,0.05883386,82642.0,82641.0,0.186627]
[1742341224371,0.12093386,82642.0,82641.0,0.186627]
[1742341225068,0.24195946,82642.0,82641.0,0.186627]
[1742341225375,0.12093386,82642.0,82641.0,0.186627]
[1742341226572,0.12003,82639.0,82638.0,0.4818314]
[1742341226764,0.12003,82639.0,82638.0,0.6018314]
[1742341226964,0.12093386,82642.0,82638.0,0.541315]
[1742341227166,0.17985996,82642.0,82641.0,0.121027]
[1742341227366,0.17985996,82642.0,82641.0,0.122027]
[1742341227967,0.21245996,82642.0,82641.0,0.122027]
[1742341228374,0.21245996,82642.0,82641.0,0.153627]
[1742341229074,0.21245996,82642.0,82641.0,0.152627]
[1742341229777,0.21245996,82642.0,82641.0,0.153627]
[1742341230074,0.21245996,82642.0,82641.0,0.0326]
[1742341230380,0.57325996,82642.0,82641.0,0.001]
[1742341230558,0.1210314,82638.0,82634.0,0.0093008]
[1742341230761,0.1210388,82633.0,82632.0,0.01867971]
[1742341230970,0.1210432,82630.0,82629.0,0.87916]
[1742341231176,0.1210432,82630.0,82629.0,0.9020287]
[1742341231377,0.1210432,82630.0,82629.0,1.0230733]
[1742341231972,0.1210432,82630.0,82629.0,1.03214637]
[1742341232167,0.1210432,82630.0,82629.0,1.09714637]
[1742341233579,0.17987706,82630.0,82629.0,1.09714637]
[1742341234081,0.08993386,82630.0,82629.0,1.09714637]
[1742341234282,0.21097706,82630.0,82629.0,1.09714637]
[1742341236369,0.42846146,82630.0,82629.0,1.09714637]
[1742341236769,0.42846146,82630.0,82629.0,1.09914637]
[1742341239983,0.21097706,82630.0,82629.0,1.09814637]
[1742341240185,0.24107706,82630.0,82629.0,1.09814637]
[1742341244074,0.08993386,82630.0,82629.0,1.09814637]
[1742341244384,0.25480912,82641.0,82640.0,0.1210285]
[1742341244684,0.25392911,82641.0,82640.0,0.2409885]
[1742341244891,0.37495611,82641.0,82640.0,0.2409885]
[1742341245076,0.43935611,82641.0,82640.0,0.3037885]
[1742341246780,0.1210432,82630.0,82629.0,0.03322177]
[1742341246975,0.1210432,82630.0,82629.0,0.15362637]
[1742341248086,0.1516432,82630.0,82629.0,0.18822637]
[1742341249081,0.1516432,82630.0,82629.0,0.06718177]
[1742341249281,0.1516432,82630.0,82629.0,0.18814177]
[1742341249484,0.1516432,82630.0,82629.0,0.30918637]
[1742341249691,0.1516432,82630.0,82629.0,0.34218637]
[1742341250089,0.1516432,82630.0,82629.0,0.34118637]
[1742341251593,0.1516432,82630.0,82629.0,0.33918637]
[1742341251897,0.0306,82630.0,82629.0,0.34118637]
[1742341252087,0.0303,82631.0,82630.0,0.1210432]
[1742341252286,0.0303,82631.0,82630.0,0.1830432]
[1742341252487,0.1513417,82631.0,82630.0,0.1830432]
[1742341252686,0.1210358,82638.0,82637.0,0.1210314]
[1742341252887,0.1210358,82638.0,82637.0,0.2409914]
[1742341253089,0.1827358,82638.0,82637.0,0.2409914]
[1742341253388,0.31057154,82638.0,82637.0,0.2409914]
[1742341253981,0.31057154,82638.0,82637.0,0.11996]
[1742341254978,0.31157154,82638.0,82637.0,0.11996]
[1742341256497,0.31157154,82638.0,82637.0,0.2409929]
[1742341256700,0.1837358,82638.0,82637.0,0.2409929]
[1742341260907,0.1837358,82638.0,82637.0,0.11996]
[1742341261397,0.5445358,82638.0,82637.0,0.11996]
[1742341261799,0.5445358,82638.0,82637.0,0.2409929]
[1742341262498,0.5445358,82638.0,82637.0,0.11996]
[1742341263009,0.1210432,82630.0,82625.0,0.8788]
[1742341263192,0.1210432,82630.0,82629.0,0.11996]
[1742341263506,0.121049,82626.0,82625.0,0.87952]
[1742341263703,0.121049,82626.0,82625.0,0.8788]
[1742341263905,0.121049,82626.0,82625.0,1.01954361]
[1742341264102,0.121049,82626.0,82625.0,0.89958361]
[1742341264297,0.190249,82626.0,82625.0,0.89958361]
[1742341264500,0.188249,82626.0,82625.0,0.89958361]
[1742341264794,0.187249,82626.0,82625.0,0.89958361]
[1742341265003,0.187249,82626.0,82625.0,0.90850975]
[1742341265210,0.187249,82626.0,82625.0,1.03256025]
[1742341265502,0.12805508,82626.0,82625.0,1.03256025]
[1742341265801,0.05885508,82626.0,82625.0,1.02956025]
[1742341266007,0.05885508,82626.0,82625.0,1.03156025]
[1742341266499,0.05885508,82626.0,82625.0,1.03256025]
[1742341267508,0.05885508,82626.0,82625.0,1.03356025]
[1742341268205,0.1210876,82627.0,82626.0,0.121049]
[1742341268501,4e-05,82627.0,82626.0,0.121049]
[1742341268700,0.24814325,82629.0,82628.0,0.1210461]
[1742341268701,0.21754325,82629.0,82628.0,0.1210461]
[1742341269809,0.21754325,82629.0,82628.0,0.1220461]
[1742341270803,0.21754325,82629.0,82628.0,0.1570461]
[1742341271510,0.1210421,82631.0,82630.0,0.1210432]
[1742341271707,0.1891421,82631.0,82630.0,0.2410032]
[1742341272311,0.0681,82631.0,82630.0,0.2410032]
[1742341273507,0.21754325,82633.0,82632.0,0.1210402]
[1742341274314,0.02647295,82633.0,82632.0,0.3117002]
[1742341274610,0.26944158,82647.0,82646.0,0.1210197]
[1742341274812,0.30404158,82647.0,82646.0,0.2409797]
[1742341275400,0.40954741,82647.0,82646.0,0.3116797]
[1742341276206,0.41154741,82647.0,82646.0,0.3116797]
[1742341277515,0.25792911,82647.0,82646.0,0.3116797]
[1742341277700,0.43774224,82652.0,82651.0,0.1210124]
[1742341278014,0.43686223,82652.0,82651.0,0.1210124]
[1742341278715,0.43686223,82652.0,82651.0,0.1879124]
[1742341278915,0.43886223,82652.0,82651.0,0.1879124]
[1742341279918,0.002,82652.0,82651.0,0.1879124]
[1742341282100,0.002,82652.0,82651.0,0.3078324]
[1742341283516,0.002,82652.0,82651.0,0.1879124]
[1742341283713,0.002,82652.0,82651.0,0.3078324]
[1742341284111,0.1230109,82652.0,82651.0,0.3078324]
[1742341284414,0.1230109,82652.0,82651.0,0.11992]
[1742341285209,0.1230109,82652.0,82651.0,0.2409324]
[1742341285717,0.1230109,82652.0,82651.0,0.3102324]
[1742341286104,0.1230109,82652.0,82651.0,0.2409324]
[1742341286322,0.1210109,82652.0,82651.0,0.2409324]
[1742341288022,0.1210109,82652.0,82651.0,0.2429324]
[1742341288519,0.1210109,82652.0,82651.0,0.2419324]
[1742341288921,0.1210109,82652.0,82651.0,0.1220124]
[1742341289118,0.1565109,82652.0,82651.0,0.2418924]
[1742341290623,0.1565109,82652.0,82651.0,0.2428924]
[1742341291514,0.1917109,82652.0,82651.0,0.2428924]
[1742341292521,0.1917109,82652.0,82651.0,0.2418924]
[1742341292720,0.1917109,82652.0,82651.0,0.12088]
[1742341292921,0.1917109,82652.0,82651.0,0.001]
[1742341294619,0.1200153,82649.0,82648.0,1.1203368]
[1742341294926,0.1200153,82649.0,82648.0,0.9998168]
[1742341296026,0.1200153,82649.0,82648.0,1.0008168]
[1742341296228,0.1200153,82649.0,82648.0,1.1084168]
[1742341296819,0.0349,82651.0,82650.0,0.1210139]
[1742341297024,0.1559124,82651.0,82650.0,0.1210139]
[1742341298831,0.1559124,82651.0,82650.0,0.1230139]
[1742341299728,0.0349,82651.0,82650.0,0.1230139]
[1742341299926,0.03554,82652.0,82651.0,0.1210124]
[1742341299927,4e-05,82652.0,82651.0,0.1210124]
[1742341300225,0.21704477,82658.0,82657.0,0.1210036]
[1742341300430,0.25014477,82658.0,82657.0,0.2408836]
[1742341300628,0.21704477,82658.0,82657.0,0.2408836]
[1742341301129,0.21704477,82658.0,82657.0,0.3427836]
[1742341301719,0.21704477,82658.0,82657.0,0.36449748]
[1742341302231,4e-05,82659.0,82658.0,0.1210022]
[1742341302735,4e-05,82659.0,82658.0,0.1898022]
[1742341303226,0.1210407,82659.0,82658.0,0.1898022]
[1742341303425,0.1908407,82659.0,82658.0,0.1898022]
[1742341303929,0.06984,82659.0,82658.0,0.1898022]
[1742341309234,0.25103736,82659.0,82658.0,0.1898022]
[1742341311831,0.18123736,82659.0,82658.0,0.1898022]
[1742341313133,0.25033736,82659.0,82658.0,0.1898022]
[1742341315431,0.25033736,82659.0,82658.0,0.3096422]
[1742341315930,0.18123736,82659.0,82658.0,0.3096422]
[1742341316355,0.00018153,82660.0,82659.0,0.1210007]
[1742341316532,0.18119736,82661.0,82659.0,0.1210007]
[1742341316533,0.18119736,82661.0,82660.0,0.1209992]
[1742341316924,0.18119736,82661.0,82660.0,0.1922992]
[1742341318235,0.18119736,82661.0,82660.0,0.1972992]
[1742341318735,0.18119736,82661.0,82660.0,0.2012992]
[1742341319637,0.00018153,82669.0,82665.0,0.0604956]
[1742341319938,0.00018153,82669.0,82668.0,0.4817875]
[1742341320331,0.00018153,82669.0,82668.0,0.49069075]
[1742341320531,0.21690324,82675.0,82672.0,0.0604908]
[1742341320839,0.61497891,82685.0,82683.0,0.1209656]
[1742341320840,0.0694,82684.0,82683.0,0.1209656]
[1742341321037,0.0694,82684.0,82683.0,0.2408056]
[1742341321337,0.2532189,82685.0,82684.0,0.1209641]
[1742341321540,0.2532189,82685.0,82684.0,0.1562641]
[1742341321923,0.3226189,82685.0,82684.0,0.1562641]
[1742341323731,0.0694,82685.0,82684.0,0.1562641]
[1742341324029,0.0694,82685.0,82684.0,0.1572641]
[1742341325233,4e-05,82686.0,82685.0,0.1209626]
[1742341325420,4e-05,82686.0,82685.0,0.1570626]
[1742341325833,0.068,82688.0,82687.0,0.1209597]
[1742341326030,0.06804,82688.0,82687.0,0.1209597]
[1742341326336,0.00018141,82693.0,82692.0,0.1209524]
[1742341326536,0.00018141,82693.0,82692.0,0.6015524]
[1742341328443,0.12113231,82693.0,82692.0,0.6015524]
[1742341328644,0.06968141,82693.0,82692.0,0.6015524]
[1742341334739,0.06968141,82693.0,82692.0,0.4806]
[1742341334929,0.1209612,82687.0,82686.0,0.1209589]
[1742341335129,0.1209612,82686.0,82685.0,0.14068751]
[1742341335434,0.2256612,82686.0,82685.0,0.26048751]
[1742341335633,0.2256612,82686.0,82685.0,0.01972491]
[1742341335837,0.1209729,82678.0,82673.0,0.87852]
[1742341336032,0.1209729,82678.0,82673.0,0.87916]
[1742341336450,0.1913729,82678.0,82677.0,0.01984878]
[1742341336746,0.1913729,82678.0,82677.0,0.00018141]
[1742341337243,0.1903729,82678.0,82677.0,0.00018141]
[1742341338945,0.1923729,82678.0,82677.0,0.00018141]
[1742341340050,0.1933729,82678.0,82677.0,0.00018141]
[1742341340640,0.1943729,82678.0,82677.0,0.00018141]
[1742341341034,0.1943729,82678.0,82677.0,0.12115571]
[1742341341239,0.1923729,82678.0,82677.0,0.12115571]
[1742341341445,0.1943729,82678.0,82677.0,0.00018141]
[1742341341951,0.1923729,82678.0,82677.0,0.00018141]
[1742341342139,0.1923729,82678.0,82677.0,0.12115571]
[1742341342140,0.1913729,82678.0,82677.0,0.12115571]
[1742341342340,0.1913729,82678.0,82677.0,0.00018141]
[1742341343245,0.1923729,82678.0,82677.0,0.00018141]
[1742341345137,0.1903729,82678.0,82677.0,0.00018141]
[1742341345337,0.1913729,82678.0,82677.0,0.00018141]
[1742341345962,0.1913729,82678.0,82677.0,0.12115571]
[1742341346651,0.1903729,82678.0,82677.0,0.00018141]
[1742341346851,0.1923729,82678.0,82677.0,0.00018141]
[1742341347653,0.1923729,82678.0,82677.0,0.00118141]
[1742341348052,0.1923729,82678.0,82677.0,0.00018141]
[1742341348444,0.1903729,82678.0,82677.0,0.00018141]
[1742341348645,0.1903729,82678.0,82677.0,0.12115571]
[1742341348848,0.1903729,82678.0,82677.0,0.22555571]
[1742341349444,0.1923729,82678.0,82677.0,0.22555571]
[1742341349755,0.1933729,82678.0,82677.0,0.22555571]
[1742341350251,0.1923729,82678.0,82677.0,0.10658141]
[1742341350446,0.1923729,82678.0,82677.0,0.22755571]
[1742341351055,0.1923729,82678.0,82677.0,0.34735571]
[1742341352058,0.1903729,82678.0,82677.0,0.34835571]
[1742341352851,0.1903729,82678.0,82677.0,0.34735571]
[1742341353047,0.1903729,82678.0,82677.0,0.34535571]
[1742341353253,0.5511729,82678.0,82677.0,0.34635571]
[1742341355661,0.1199729,82678.0,82677.0,0.34635571]
[1742341355960,4e-05,82679.0,82678.0,0.1209729]
[1742341356351,4e-05,82679.0,82678.0,0.1892729]
[1742341356552,0.06834,82679.0,82678.0,0.1892729]
[1742341356749,0.0683,82679.0,82678.0,0.1892729]
[1742341357466,0.1892714,82679.0,82678.0,0.1892729]
[1742341357668,0.1892714,82679.0,82678.0,0.1902729]
[1742341359163,0.1892714,82679.0,82678.0,0.1892729]
[1742341359367,0.1892714,82679.0,82678.0,0.1902729]
[1742341359665,0.1892714,82679.0,82678.0,0.0693]
[1742341360166,0.1892714,82679.0,82678.0,0.1902729]
[1742341360667,0.1892714,82679.0,82678.0,0.1922729]
[1742341361063,0.1892714,82679.0,82678.0,0.1902729]
[1742341361789,0.1892714,82679.0,82678.0,0.1892729]
[1742341362167,0.1892714,82679.0,82678.0,0.0683]
[1742341362585,0.1892714,82679.0,82678.0,0.0693]
[1742341363080,0.1892714,82679.0,82678.0,0.1902729]
[1742341363380,0.1892714,82679.0,82678.0,0.0683]
[1742341363581,0.1912714,82679.0,82678.0,0.0683]
[1742341363882,0.1922714,82679.0,82678.0,0.0683]
[1742341365176,0.5530714,82679.0,82678.0,0.0683]
[1742341365377,0.0604911,82672.0,82668.0,0.00890325]
[1742341365675,0.45853065,82679.0,82661.0,0.1198]
[1742341365676,0.1209948,82663.0,82662.0,0.0361]
[1742341366077,0.1209948,82663.0,82662.0,0.0711]
[1742341366281,0.1872948,82663.0,82662.0,0.0711]
[1742341366479,0.1872948,82663.0,82662.0,0.08030958]
[1742341366880,0.1892948,82663.0,82662.0,0.08030958]
[1742341368378,0.1912948,82663.0,82662.0,0.08030958]
[1742341369485,0.1892948,82663.0,82662.0,0.08030958]
[1742341369792,0.1912948,82663.0,82662.0,0.08030958]
[1742341369989,0.1892948,82663.0,82662.0,0.08030958]
[1742341370289,0.30970984,82663.0,82662.0,0.08030958]
[1742341371491,0.30770984,82663.0,82662.0,0.08030958]
[1742341371674,0.30970984,82663.0,82662.0,0.08030958]
[1742341373081,0.67050984,82663.0,82662.0,0.08030958]
[1742341373588,0.5520948,82663.0,82662.0,0.08030958]
[1742341375886,0.5500948,82663.0,82662.0,0.08030958]
[1742341376186,0.5520948,82663.0,82662.0,0.08030958]
[1742341382086,0.4837948,82663.0,82662.0,0.20130588]
[1742341382287,0.004,82663.0,82662.0,0.20130588]
[1742341382487,0.1239948,82663.0,82662.0,0.20130588]
[1742341382989,0.003,82663.0,82662.0,0.32146588]
[1742341383203,0.16176262,82664.0,82663.0,0.1209948]
[1742341383498,0.2532189,82675.0,82670.0,0.1209846]
[1742341383682,0.2532189,82675.0,82670.0,0.6020646]
[1742341384285,0.2532189,82675.0,82670.0,0.6695646]
[1742341384689,4e-05,82672.0,82670.0,0.6695646]
[1742341385585,4e-05,82672.0,82670.0,0.6715646]
[1742341386196,4e-05,82672.0,82670.0,0.6695646]
[1742341386496,4e-05,82672.0,82670.0,0.6705646]
[1742341386695,0.060485,82680.0,82677.0,0.1814579]
[1742341386998,0.1814564,82680.0,82679.0,0.1209714]
[1742341387396,0.54312711,82684.0,82683.0,0.1209656]
[1742341387618,0.4817641,82684.0,82683.0,0.1209656]
[1742341388999,0.3608,82684.0,82683.0,0.1209656]
[1742341389589,0.00022141,82692.0,82689.0,0.0604784]
[1742341389794,0.00018141,82692.0,82691.0,0.1209539]
[1742341390098,0.00018141,82692.0,82691.0,0.1564539]
[1742341390300,0.00018141,82692.0,82691.0,0.1911539]
[1742341392000,0.00018141,82692.0,82691.0,0.21584159]
[1742341394297,4e-05,82696.0,82695.0,0.120948]
[1742341394504,0.0693,82708.0,82706.0,0.1209305]
[1742341394695,0.190229,82708.0,82707.0,0.3102305]
[1742341394896,0.551029,82708.0,82707.0,0.3102305]
[1742341395104,0.4301,82708.0,82707.0,0.3102305]
[1742341395698,0.551029,82708.0,82707.0,0.3102305]
[1742341397293,0.551029,82708.0,82707.0,0.31912257]
[1742341398810,0.190229,82708.0,82707.0,0.31912257]
[1742341399802,0.190229,82708.0,82707.0,0.04319207]
[1742341400001,0.190229,82708.0,82707.0,0.12869207]
[1742341401411,0.19400918,82708.0,82707.0,0.12869207]
[1742341402207,0.190229,82708.0,82707.0,0.12869207]
[1742341402912,0.190229,82708.0,82707.0,0.24962257]
[1742341403603,0.19400917,82708.0,82707.0,0.16279207]
[1742341403803,0.19400917,82708.0,82707.0,0.12869207]
[1742341404011,0.190229,82708.0,82707.0,0.12869207]
[1742341405610,0.190229,82708.0,82707.0,0.24962257]
[1742341405816,0.0693,82708.0,82707.0,0.24962257]
[1742341406317,0.1209524,82692.0,82690.0,0.1209547]
[1742341406513,0.3608,82692.0,82683.0,0.0338]
[1742341406714,0.0604776,82690.0,82683.0,0.05765376]
[1742341407020,0.0707,82689.0,82686.0,0.1209611]
[1742341407316,0.1209583,82688.0,82687.0,0.18886]
[1742341407816,0.1911583,82688.0,82687.0,0.18886]
[1742341408116,0.1911583,82688.0,82687.0,0.0691]
[1742341408311,0.1911583,82688.0,82687.0,0.18886]
[1742341408811,0.5519583,82688.0,82687.0,0.18886]
[1742341409016,0.5549583,82688.0,82687.0,0.19809379]
[1742341409917,0.5519583,82688.0,82687.0,0.19809379]
[1742341410126,0.5549583,82688.0,82687.0,0.19809379]
[1742341410506,0.5559583,82688.0,82687.0,0.19809379]
[1742341411108,0.5569583,82688.0,82687.0,0.19809379]
[1742341411306,0.5569583,82688.0,82687.0,0.04453379]
[1742341411610,0.5569583,82688.0,82687.0,0.12899379]
[1742341411611,0.5559583,82688.0,82687.0,0.12899379]
[1742341411812,0.5579583,82688.0,82687.0,0.00923379]
[1742341412007,0.12097,82680.0,82663.0,0.8782]
[1742341412207,0.48177,82680.0,82670.0,0.11976]
[1742341412405,0.1209831,82671.0,82670.0,0.11976]
[1742341412712,0.4817831,82671.0,82670.0,0.14441292]
[1742341413415,0.5539831,82671.0,82670.0,0.14441292]
[1742341414718,0.4817831,82671.0,82670.0,0.15360861]
[1742341414923,0.3618,82671.0,82670.0,0.27459321]
[1742341415118,0.66302073,82671.0,82670.0,0.27459321]
[1742341415419,0.73362073,82671.0,82670.0,0.27459321]
[1742341415618,0.73362073,82671.0,82670.0,0.34379321]
[1742341415822,0.73362073,82671.0,82670.0,0.22280861]
[1742341417218,0.73362073,82671.0,82670.0,0.34379321]
[1742341418115,0.73362073,82671.0,82670.0,0.22280861]
[1742341418419,0.73362073,82671.0,82670.0,0.03384861]
[1742341418420,0.5533831,82671.0,82670.0,0.03384861]
[1742341418720,0.1209861,82669.0,82668.0,0.1198]
[1742341419313,0.1948861,82669.0,82668.0,0.1198]
[1742341419512,0.1948861,82669.0,82668.0,0.14406542]
[1742341420321,0.1948861,82669.0,82668.0,0.14506542]
[1742341421718,0.1948861,82669.0,82668.0,0.34065292]
[1742341422927,0.1948861,82669.0,82668.0,0.34989855]
[1742341423615,0.1948861,82669.0,82668.0,0.22891105]
[1742341424617,0.1948861,82669.0,82668.0,0.34989855]
[1742341425230,0.1948861,82669.0,82668.0,0.22891105]
[1742341425632,0.1948861,82669.0,82668.0,0.34989855]
[1742341431845,0.1948861,82669.0,82668.0,0.34889855]
[1742341432139,0.1948861,82669.0,82668.0,0.34989855]
[1742341433055,4e-05,82673.0,82672.0,0.1209817]
[1742341433841,4e-05,82673.0,82672.0,0.1941817]
[1742341434654,0.18023763,82674.0,82673.0,0.1209802]
[1742341434856,0.18027763,82674.0,82673.0,0.1209802]
[1742341435057,0.18027763,82674.0,82673.0,0.2309802]
[1742341435753,0.18127763,82674.0,82673.0,0.2309802]
[1742341435953,0.18327763,82674.0,82673.0,0.2309802]
[1742341436940,0.00304,82674.0,82673.0,0.2309802]
[1742341438850,0.1240187,82674.0,82673.0,0.11]
[1742341439047,0.1240187,82674.0,82673.0,0.1198]
[1742341439346,0.1240187,82674.0,82673.0,0.2407802]
[1742341439855,0.1960187,82674.0,82673.0,0.2407802]
[1742341440053,0.07504,82674.0,82673.0,0.2407802]
[1742341440262,0.00304,82674.0,82673.0,0.3133802]
[1742341440856,0.003,82674.0,82673.0,0.3133802]
[1742341441862,0.14456104,82675.0,82674.0,0.1209787]
[1742341442159,0.14460104,82675.0,82674.0,0.1209787]
[1742341442355,0.14460104,82675.0,82674.0,0.1946787]
[1742341442555,0.00018141,82679.0,82678.0,0.1209729]
[1742341443462,0.00018141,82679.0,82678.0,0.2329729]
[1742341444749,0.00018141,82679.0,82678.0,0.2339729]
[1742341445453,0.00018141,82679.0,82678.0,0.2329729]
[1742341446059,0.00118141,82679.0,82678.0,0.2329729]
[1742341447760,0.00118141,82679.0,82678.0,0.2339729]
[1742341448463,0.00018141,82679.0,82678.0,0.2329729]
[1742341449356,0.00118141,82679.0,82678.0,0.2329729]
[1742341451258,0.12215281,82679.0,82678.0,0.23264]
[1742341451464,0.12215281,82679.0,82678.0,0.3153129]
[1742341451768,0.00018141,82679.0,82678.0,0.2419329]
[1742341451952,0.07308141,82679.0,82678.0,0.2419329]
[1742341452149,0.07308141,82679.0,82678.0,0.3174329]
[1742341452358,0.00118141,82679.0,82678.0,0.1964729]
[1742341452561,0.00118141,82679.0,82678.0,0.3175929]
[1742341453366,0.00318141,82679.0,82678.0,0.3175929]
[1742341454060,0.00518141,82679.0,82678.0,0.3175929]
[1742341454964,0.07868141,82679.0,82678.0,0.3175929]
[1742341461261,0.19965281,82679.0,82678.0,0.3175929]
[1742341462069,0.19965281,82679.0,82678.0,0.2791529]
[1742341465171,4e-05,82680.0,82678.0,0.2791529]
[1742341465360,0.04851303,82685.0,82684.0,0.1209641]
[1742341465671,4e-05,82695.0,82690.0,0.1209553]
[1742341465869,0.0716,82694.0,82690.0,0.1209553]
[1742341466275,0.0363,82693.0,82690.0,0.1581553]
[1742341466468,0.0363,82693.0,82690.0,0.2784753]
[1742341466866,0.0363,82693.0,82690.0,0.3161753]
[1742341467263,0.0716,82694.0,82690.0,0.3161753]
[1742341468165,0.25733268,82691.0,82690.0,0.3161753]
[1742341468872,0.25433268,82691.0,82690.0,0.3161753]
[1742341470061,0.25433268,82691.0,82690.0,0.3160153]
[1742341470262,0.002,82691.0,82690.0,0.3160153]